bitfinex/quotes_SOLUSD_20240918
["timestamp","ask_amount","ask_price","bid_price","bid_amount"]
[1726686877492,7.6154,131.32,131.28,19.4308975]
[1726686877691,7.6154,131.32,131.28,27.0477975]
[1726686879108,7.6146,131.33,131.29,7.6167]
[1726686879774,19.0306,131.37,131.3,19.0402]
[1726686880290,7.6141,131.34,131.3,26.6558]
[1726686880483,19.0306,131.37,131.31,7.6155]
[1726686880673,7.6126,131.37,131.33,7.614]
[1726686880877,7.6132,131.36,131.32,26.6512]
[1726686881071,7.6122,131.37,131.32,19.0365]
[1726686881311,25.4715,131.4,131.32,19.0365]
[1726686881312,7.612,131.38,131.34,7.6137]
[1726686881601,7.612,131.37,131.33,7.6141]
[1726686881802,7.96861836,131.42,131.34,19.0338]
[1726686882111,19.0247,131.41,131.31,6.46739]
[1726686882309,19.0247,131.41,131.33,19.0358]
[1726686882488,7.6127,131.36,131.33,19.0358]
[1726686882882,7.6121,131.37,131.33,26.65]
[1726686883610,7.6126,131.36,131.33,19.0358]
[1726686883917,7.6122,131.37,131.33,26.6501]
[1726686884123,7.6117,131.38,131.34,7.6136]
[1726686884412,7.9683449,131.4,131.33,19.0358]
[1726686884623,7.6123,131.37,131.33,19.0358]
[1726686884819,7.6123,131.37,131.33,26.6501]
[1726686885188,7.9683449,131.4,131.31,6.46739]
[1726686885492,7.9683449,131.4,131.3,15.9006]
[1726686885493,7.6145,131.33,131.3,15.9006]
[1726686885812,7.6153,131.32,131.3,15.9006]
[1726686886013,0.12549,131.36,131.3,15.9006]
[1726686886222,0.25098,131.36,131.3,15.9006]
[1726686886422,19.0305,131.37,131.3,23.5166]
[1726686886590,0.25098,131.36,131.3,15.9006]
[1726686886914,19.0335,131.35,131.28,19.4311975]
[1726686887139,7.6147,131.33,131.29,7.6166]
[1726686887304,7.6147,131.33,131.29,7.6165]
[1726686887689,7.6162,131.3,131.28,0.3883975]
[1726686887915,7.6156,131.31,131.28,0.3883975]
[1726686888091,19.0356,131.34,131.28,0.3883975]
[1726686888407,7.6151,131.32,131.28,0.3883975]
[1726686888614,6.34378,131.36,131.28,0.3883975]
[1726686888615,7.6145,131.33,131.28,0.3883975]
[1726686888915,6.34378,131.36,131.28,0.3883975]
[1726686888916,7.6151,131.32,131.28,8.0054975]
[1726686889207,7.6145,131.33,131.29,7.6165]
[1726686889409,6.34378,131.36,131.29,7.6165]
[1726686889617,7.6134,131.35,131.31,7.6153]
[1726686889792,6.4029,131.39,131.3,7.616]
[1726686889793,7.6138,131.34,131.3,7.616]
[1726686890392,7.6145,131.33,131.29,26.6581]
[1726686890591,7.6139,131.34,131.3,7.6161]
[1726686891218,7.6144,131.33,131.29,26.658]
[1726686891409,7.6139,131.34,131.3,7.6161]
[1726686892044,7.613,131.36,131.31,19.0378]
[1726686892344,7.6122,131.37,131.31,19.0378]
[1726686892552,7.6122,131.37,131.33,7.6138]
[1726686892922,7.9683449,131.4,131.33,19.0355]
[1726686893539,7.6132,131.35,131.31,7.6153]
[1726686893719,19.0274,131.39,131.31,20.0]
[1726686894835,7.613,131.36,131.32,7.6149]
[1726686895649,19.0274,131.39,131.31,7.6155]
[1726686895837,0.25098,131.38,131.31,7.6155]
[1726686896146,7.6133,131.35,131.31,7.6155]
[1726686896744,7.6134,131.35,131.31,7.6155]
[1726686897134,7.6138,131.34,131.3,26.6556]
[1726686897332,7.6134,131.35,131.31,7.6155]
[1726686897532,7.6126,131.37,131.33,7.6143]
[1726686897724,7.6126,131.36,131.32,19.0373]
[1726686898222,7.6121,131.37,131.33,7.6142]
[1726686898539,7.6127,131.36,131.32,26.6521]
[1726686899325,7.96892031,131.4,131.33,21.2431]
[1726686900345,7.6138,131.34,131.33,15.0318]
[1726686900522,7.6138,131.34,131.28,0.3883975]
[1726686900523,7.6167,131.29,131.28,0.3883975]
[1726686902175,7.99317,131.29,131.28,0.3883975]
[1726686902357,27.99317,131.29,131.28,0.3883975]
[1726686902646,7.99317,131.29,131.28,0.3883975]
[1726686903050,7.99317,131.29,131.22,0.3713453]
[1726686903051,7.6202,131.23,131.22,0.3713453]
[1726686903224,7.6196,131.25,131.22,0.3713453]
[1726686903429,38.46047,131.29,131.22,0.3713453]
[1726686903430,7.6201,131.24,131.22,0.3713453]
[1726686903631,7.619,131.25,131.22,0.3713453]
[1726686903852,7.6184,131.27,131.22,0.3713453]
[1726686904236,7.6173,131.28,131.22,0.3713453]
[1726686904436,58.43982171,131.33,131.22,0.3713453]
[1726686904437,20.36522171,131.33,131.22,0.3713453]
[1726686904642,7.97426842,131.29,131.23,19.0495]
[1726686904835,7.6172,131.29,131.24,7.6195]
[1726686905029,7.618,131.27,131.22,0.3713453]
[1726686905237,7.6174,131.28,131.22,19.4222453]
[1726686905433,7.97463267,131.3,131.27,7.6178]
[1726686905643,19.0351,131.34,131.25,15.7652]
[1726686905644,7.6142,131.34,131.29,7.6167]
[1726686905846,19.0308,131.37,131.26,19.0453]
[1726686905847,7.6133,131.35,131.3,7.6161]
[1726686906058,7.6139,131.34,131.28,19.0424]
[1726686906261,7.6139,131.34,131.29,20.0]
[1726686906457,15.58304737,131.36,131.31,7.6154]
[1726686906667,7.6132,131.35,131.3,19.0394]
[1726686906840,7.6132,131.35,131.26,20.0]
[1726686906841,7.614,131.34,131.29,7.6161]
[1726686907045,7.97033204,131.37,131.31,7.6155]
[1726686907367,7.6152,131.32,131.28,19.0427]
[1726686907581,7.97033204,131.37,131.28,19.0427]
[1726686907755,7.97033204,131.37,131.3,19.0395]
[1726686907946,7.97033204,131.37,131.35,7.613]
[1726686908155,0.3713453,131.42,131.37,7.612]
[1726686908339,0.3713453,131.42,131.38,1.52209571]
[1726686908656,7.6097,131.41,131.36,7.6126]
[1726686908845,0.3713453,131.42,131.35,0.12549]
[1726686909044,7.9809453,131.42,131.37,7.612]
[1726686909246,7.9809453,131.42,131.35,19.15779]
[1726686909247,7.6098,131.41,131.36,7.6125]
[1726686909438,0.3713453,131.42,131.35,7.613]
[1726686909765,0.3713453,131.42,131.33,22.3206]
[1726686909960,0.25098,131.41,131.33,15.6895]
[1726686910168,19.27638,131.41,131.33,15.6895]
[1726686910463,19.27638,131.41,131.29,40.6117]
[1726686910638,7.6127,131.36,131.31,7.6154]
[1726686911170,0.12549,131.4,131.31,7.6154]
[1726686911171,7.6133,131.35,131.31,7.6154]
[1726686911353,0.12549,131.37,131.29,15.405]
[1726686911555,0.25098,131.38,131.29,15.405]
[1726686911859,19.0311,131.37,131.29,15.405]
[1726686912074,7.6191,131.25,131.22,0.3713453]
[1726686912358,0.25098,131.29,131.22,0.3713453]
[1726686912564,7.6198,131.24,131.22,0.3713453]
[1726686912863,7.6202,131.23,131.22,0.3713453]
[1726686913538,7.74569,131.23,131.22,0.3713453]
[1726686913739,7.87118,131.23,131.22,0.3713453]
[1726686913963,7.99667,131.23,131.22,0.3713453]
[1726686914138,7.6231,131.18,131.17,0.3713453]
[1726686914573,7.87408,131.18,131.17,0.3713453]
[1726686914940,0.25098,131.22,131.17,0.3713453]
[1726686915565,7.6231,131.18,131.17,0.3713453]
[1726686915740,0.25098,131.22,131.17,0.3713453]
[1726686915946,7.6225,131.19,131.17,0.3713453]
[1726686916575,0.25098,131.22,131.17,0.3713453]
[1726686916576,7.74859,131.18,131.17,0.3713453]
[1726686916880,7.6231,131.18,131.17,0.3713453]
[1726686917183,0.12549,131.18,131.17,0.1718203]
[1726686917340,27.99957,131.18,131.17,2.03e-05]
[1726686917535,27.99957,131.18,131.15,0.3282984]
[1726686917536,8.00067,131.16,131.15,0.3282984]
[1726686917935,28.00067,131.16,131.15,0.3282984]
[1726686918260,28.00067,131.16,131.15,9.84e-05]
[1726686918835,28.00067,131.16,131.1,0.3282984]
[1726686918836,8.00357,131.11,131.1,0.3282984]
[1726686919078,8.00357,131.11,131.05,0.3282984]
[1726686919079,7.63,131.06,131.05,0.3282984]
[1726686919362,8.00647,131.06,131.05,0.3282984]
[1726686920371,8.00647,131.06,131.0,0.3282984]
[1726686920372,8.00947,131.01,131.0,0.3282984]
[1726686920955,70.40808846,131.06,130.88,19.1002]
[1726686920956,7.75959,130.99,130.98,0.0697235]
[1726686921154,8.01057,130.99,130.98,0.0697235]
[1726686921370,8.01057,130.99,130.9,0.5138237]
[1726686921371,7.6373,130.94,130.9,0.5138237]
[1726686921576,0.37647,130.99,130.9,0.5138237]
[1726686921577,0.25098,130.98,130.9,0.5138237]
[1726686921787,19.21419,130.97,130.9,0.0138237]
[1726686921960,0.12549,130.95,130.9,0.0138237]
[1726686922462,7.76239,130.95,130.9,0.0138237]
[1726686922774,7.88808,130.94,130.9,0.0138237]
[1726686922975,0.25098,130.94,130.9,0.0138237]
[1726686923159,7.6364,130.96,130.9,7.6529237]
[1726686923356,7.6364,130.96,130.9,0.0138237]
[1726686923357,7.637,130.95,130.9,0.0138237]
[1726686923782,0.25098,130.97,130.9,0.0138237]
[1726686923783,7.76129,130.97,130.91,7.6388]
[1726686924087,7.99427563,130.99,130.91,7.6388]
[1726686924088,15.62847563,130.99,130.94,7.6369]
[1726686924291,15.62847563,130.99,130.91,20.0]
[1726686924292,7.6342,130.99,130.91,20.0]
[1726686924473,7.99316132,131.01,130.93,19.0936]
[1726686924877,7.6341,130.99,130.93,26.7312]
[1726686925055,7.99316132,131.01,130.93,19.0936]
[1726686925390,7.99316132,131.01,130.9,0.0138237]
[1726686925594,7.99316132,131.01,130.91,35.6329]
[1726686925771,6.0249,131.07,130.97,7.6352]
[1726686925971,6.0249,131.07,130.98,19.0868]
[1726686925972,7.99071421,131.04,130.98,19.0868]
[1726686926291,20.0,131.12,130.91,35.6329]
[1726686926292,6.319,131.12,130.97,20.0]
[1726686926470,6.319,131.12,131.04,7.6311]
[1726686926471,7.98831936,131.09,131.04,7.6311]
[1726686926677,7.98831936,131.09,131.05,7.6306]
[1726686926870,44.11353131,131.18,131.06,7.6299]
[1726686927073,7.98607844,131.12,131.06,7.6299]
[1726686927271,7.98607844,131.12,131.07,7.6294]
[1726686927591,44.11353131,131.18,131.06,7.6295]
[1726686927592,47.18728655,131.18,131.06,7.6295]
[1726686927788,47.18728655,131.18,131.05,19.0753]
[1726686927789,7.98528378,131.12,131.07,7.6295]
[1726686927996,20.0,131.17,131.07,19.0724]
[1726686928164,34.71931539,131.18,131.1,7.6277]
[1726686928493,7.98394371,131.13,131.08,7.6288]
[1726686928672,7.6259,131.14,131.08,7.6288]
[1726686928870,1.33027269,131.16,131.09,7.6282]
[1726686929696,8.95507269,131.16,131.1,7.6273]
[1726686929862,7.9838306,131.17,131.15,7.6246]
[1726686930061,0.5138237,131.18,131.05,20.37647]
[1726686930062,0.5138237,131.18,131.14,7.6253]
[1726686930276,0.5138237,131.18,131.12,26.6922]
[1726686930277,1.0138237,131.18,131.12,26.6922]
[1726686930469,1.0138237,131.18,131.12,19.0662]
[1726686930866,1.0138237,131.18,131.17,7.6236]
[1726686931067,1.0138237,131.18,131.15,26.6863]
[1726686931397,1.0138237,131.18,131.15,26.6867]
[1726686931694,1.0138237,131.18,131.16,7.6242]
[1726686931858,1.0138237,131.18,131.14,19.0635]
[1726686932060,1.0138237,131.18,131.16,7.6242]
[1726686932266,1.0138237,131.18,131.17,7.6236]
[1726686932494,1.0138237,131.18,131.16,19.0592]
[1726686933289,1.0138237,131.18,131.16,26.6834]
[1726686933486,1.0138237,131.18,131.16,7.6241]
[1726686933804,1.0138237,131.18,131.17,7.6236]
[1726686933979,1.0138237,131.18,131.15,19.0609]
[1726686934178,1.0138237,131.18,131.17,7.6236]
[1726686934805,1.0138237,131.18,131.17,27.74909]
[1726686935100,1.0138237,131.18,131.17,27.87458]
[1726686935686,1.0138237,131.18,131.17,28.00007]
[1726686935890,1.0138237,131.18,131.17,27.87458]
[1726686936108,0.5138237,131.26,131.17,27.87458]
[1726686936109,0.5138237,131.26,131.2,19.0546]
[1726686936318,0.5138237,131.26,131.17,20.0]
[1726686936614,7.6202,131.23,131.18,7.623]
[1726686937126,0.5138237,131.26,131.17,19.059]
[1726686937442,0.5138237,131.26,131.19,19.0554]
[1726686937587,0.5138237,131.26,131.16,38.121]
[1726686937588,0.5138237,131.26,131.22,7.6207]
[1726686938011,0.5138237,131.26,131.21,19.0523]
[1726686938012,0.5138237,131.26,131.18,26.6802]
[1726686938230,7.6197,131.24,131.19,7.6224]
[1726686938395,0.5138237,131.26,131.2,19.054]
[1726686938717,0.5138237,131.26,131.18,0.12549]
[1726686939294,0.5138237,131.26,131.22,26.6714]
[1726686939622,0.5138237,131.26,131.14,6.1037]
[1726686939918,0.25098,131.25,131.16,19.0602]
[1726686940120,7.6201,131.24,131.19,7.622]
[1726686940417,7.6213,131.21,131.17,7.6236]
[1726686940621,7.62,131.24,131.14,6.1037]
[1726686940805,0.5138237,131.26,131.16,20.37647]
[1726686941122,8.1323237,131.26,131.21,7.6212]
[1726686941421,7.6194,131.25,131.2,26.6753]
[1726686941625,0.5138237,131.26,131.2,19.0539]
[1726686941626,7.6196,131.24,131.2,19.0539]
[1726686941920,0.5138237,131.26,131.17,19.0586]
[1726686941921,7.6209,131.22,131.17,19.0586]
[1726686942122,7.6215,131.21,131.17,19.0586]
[1726686942294,7.6219,131.21,131.15,7.6244]
[1726686942493,7.622,131.2,131.16,7.6242]
[1726686942729,0.25098,131.23,131.14,25.1668]
[1726686942730,7.6229,131.19,131.14,26.6881]
[1726686942923,0.25098,131.25,131.16,19.0598]
[1726686943131,0.12549,131.24,131.16,19.0598]
[1726686943424,0.12549,131.23,131.13,35.6179]
[1726686943633,7.6212,131.22,131.15,19.0615]
[1726686943830,7.6214,131.21,131.13,16.5535]
[1726686944118,7.6221,131.2,131.14,19.0628]
[1726686944294,7.6214,131.21,131.16,7.6242]
[1726686944498,7.6214,131.21,131.17,7.6235]
[1726686944704,0.12549,131.25,131.16,7.6242]
[1726686944705,7.6221,131.2,131.16,7.6242]
[1726686944898,0.12549,131.25,131.19,7.6225]
[1726686945220,19.5607237,131.26,131.18,26.6802]
[1726686945421,0.25098,131.25,131.15,19.0614]
[1726686945621,7.6214,131.21,131.16,7.6238]
[1726686945923,0.12549,131.25,131.17,19.0581]
[1726686946221,7.6214,131.21,131.17,19.0581]
[1726686946607,19.29928,131.25,131.14,39.43927]
[1726686946928,7.6226,131.19,131.15,7.6243]
[1726686947106,7.622,131.2,131.15,7.6243]
[1726686947425,7.6238,131.17,131.13,24.179]
[1726686947629,19.054,131.21,131.11,19.0671]
[1726686947929,0.25098,131.21,131.13,7.6258]
[1726686948222,0.25098,131.21,131.13,19.0636]
[1726686948420,7.6239,131.17,131.13,26.6893]
[1726686948630,0.25098,131.21,131.13,26.6893]
[1726686948631,0.25098,131.21,131.13,19.0636]
[1726686948800,0.25098,131.21,131.09,6.273]
[1726686948801,19.0554,131.2,131.1,19.0684]
[1726686949000,19.0583,131.18,131.09,25.3433]
[1726686949308,0.12549,131.19,131.12,7.6265]
[1726686949506,0.12549,131.19,131.11,19.0673]
[1726686949507,7.9816592,131.18,131.11,19.0673]
[1726686949729,7.9816592,131.18,131.09,6.273]
[1726686949730,7.9816592,131.18,131.14,7.6253]
[1726686949897,7.622,131.2,131.15,7.6248]
[1726686950104,7.6226,131.19,131.13,19.0641]
[1726686950330,7.6226,131.19,131.15,7.6247]
[1726686950637,7.6231,131.18,131.13,19.0641]
[1726686950929,7.6226,131.19,131.13,19.0641]
[1726686951148,7.6237,131.17,131.1,39.0687]
[1726686951347,0.25098,131.2,131.1,39.0687]
[1726686951651,7.6243,131.16,131.1,20.0]
[1726686951826,19.30638,131.2,131.11,0.12549]
[1726686952022,7.6237,131.17,131.11,7.75249]
[1726686952247,7.6237,131.17,131.1,20.0]
[1726686952248,0.25098,131.2,131.1,20.0]
[1726686952544,19.0574,131.19,131.09,6.273]
[1726686952746,7.6248,131.15,131.1,7.6277]
[1726686953059,7.6241,131.17,131.11,7.6271]
[1726686953350,7.6255,131.14,131.1,19.0687]
[1726686953865,0.25098,131.2,131.09,6.273]
[1726686953866,7.6277,131.1,131.09,6.273]
[1726686954151,7.6283,131.09,131.04,25.4224]
[1726686954325,0.25098,131.18,131.04,6.3449]
[1726686954525,7.6296,131.07,131.04,6.3449]
[1726686954747,6.1742,131.15,131.03,22.8378]
[1726686954748,7.6302,131.06,131.03,15.2061]
[1726686955050,7.6302,131.06,130.98,38.6875237]
[1726686955051,19.0731,131.08,130.98,36.2208237]
[1726686955253,7.6307,131.05,131.0,7.6331]
[1726686955745,7.6307,131.05,130.98,36.2208237]
[1726686955946,7.6301,131.06,131.0,19.0835]
[1726686956255,38.1381,131.11,130.98,17.1349237]
[1726686956548,7.6341,130.99,130.98,0.5138237]
[1726686957123,7.6336,131.0,130.98,0.5138237]
[1726686957324,7.6341,130.99,130.98,0.5138237]
[1726686958434,7.6335,131.01,130.98,0.5138237]
[1726686958636,7.6339,131.0,130.98,0.5138237]
[1726686958860,25.4377,131.06,130.98,0.5138237]
[1726686959028,7.6341,130.99,130.98,0.5138237]
[1726686959363,7.6336,131.0,130.98,0.5138237]
[1726686959805,7.87327117,131.11,131.0,19.0826]
[1726686960059,7.6319,131.03,130.98,0.6393137]
[1726686960257,7.6325,131.02,130.98,0.5138237]
[1726686960765,7.9890769,131.07,130.98,0.5138237]
[1726686960766,7.6336,131.0,130.98,0.5138237]
[1726686960973,19.0762,131.06,130.98,0.5138237]
[1726686960974,7.6341,130.99,130.98,0.5138237]
[1726686961142,7.6336,131.0,130.98,0.5138237]
[1726686961342,0.37647,131.05,130.98,0.5138237]
[1726686961551,7.633,131.01,130.98,0.5138237]
[1726686961863,7.6341,130.99,130.98,0.5138237]
[1726686962632,6.2282,131.03,130.98,0.5138237]
[1726686962836,7.6332,131.01,130.98,0.5138237]
[1726686963031,20.0,131.05,130.98,0.5138237]
[1726686963235,7.9890769,131.07,130.98,0.5138237]
[1726686963236,7.6316,131.04,131.0,7.6335]
[1726686963548,7.9890769,131.07,130.99,7.6341]
[1726686963861,7.9890769,131.07,131.02,7.6319]
[1726686964072,7.6294,131.08,131.03,7.6317]
[1726686964235,7.6284,131.09,131.04,7.6311]
[1726686964437,25.4774,131.12,131.03,0.25098]
[1726686964438,33.463885,131.12,131.03,0.25098]
[1726686964651,14.396885,131.12,131.04,19.20259]
[1726686964854,14.396885,131.12,131.04,19.0771]
[1726686964855,7.986485,131.12,131.04,19.0771]
[1726686965059,7.6284,131.09,131.04,26.7079]
[1726686965259,19.069,131.11,131.03,0.12549]
[1726686965448,7.6301,131.06,131.02,16.2229]
[1726686965637,7.6284,131.09,131.03,19.45527]
[1726686965844,7.63,131.06,131.02,16.2229]
[1726686966100,7.986485,131.12,130.98,7.0046237]
[1726686966101,0.25098,131.08,130.98,7.0046237]
[1726686966270,7.6315,131.04,130.99,7.6337]
[1726686966470,7.6315,131.04,131.0,7.6335]
[1726686966643,20.12549,131.11,130.98,7.0046237]
[1726686966844,0.12549,131.1,131.01,26.7138]
[1726686967049,19.19559,131.1,131.01,19.081]
[1726686967341,19.0733,131.08,130.99,7.6339]
[1726686967646,0.12549,131.07,130.99,7.6339]
[1726686967966,0.12549,131.1,130.99,0.12549]
[1726686968170,0.37647,131.1,130.98,26.0907237]
[1726686968347,7.6314,131.04,130.98,7.0046237]
[1726686968673,7.6314,131.04,130.99,7.6336]
[1726686968847,7.632,131.03,130.99,7.6336]
[1726686969171,0.25098,131.08,130.99,7.6336]
[1726686969172,0.25098,131.08,130.99,26.7186]
[1726686969345,7.6318,131.03,130.99,26.7186]
[1726686969541,7.6325,131.02,130.99,19.0846]
[1726686969768,7.632,131.03,130.99,19.0846]
[1726686969971,7.6341,130.99,130.98,0.5138237]
[1726686970173,7.6331,131.01,130.98,0.5138237]
[1726686970375,7.6313,131.04,131.0,7.6334]
[1726686970550,7.6307,131.05,130.98,0.5138237]
[1726686970876,7.6302,131.06,131.01,7.6328]
[1726686971055,7.6317,131.04,130.99,19.0846]
[1726686971257,25.3352,131.08,130.99,19.0846]
[1726686971458,7.6341,130.99,130.98,0.5138237]
[1726686971768,7.6336,131.0,130.98,0.5138237]
[1726686971964,7.6341,130.99,130.98,0.5138237]
[1726686972674,7.6336,131.0,130.98,0.5138237]
[1726686973245,19.20279,131.05,130.98,0.5138237]
[1726686973444,7.633,131.01,130.98,0.5138237]
[1726686973777,38.1483,131.07,130.98,0.5138237]
[1726686973778,7.6319,131.03,130.98,8.1485237]
[1726686973983,6.2624,131.08,130.99,0.82922873]
[1726686974265,19.0685,131.11,131.03,7.6317]
[1726686974473,14.317885,131.12,130.99,0.37647]
[1726686974474,6.3314,131.12,131.04,7.6312]
[1726686974652,7.98638451,131.11,131.04,19.0769]
[1726686975076,7.98638451,131.11,131.07,7.6294]
[1726686975247,7.6279,131.1,131.03,20.25098]
[1726686975453,6.4924,131.16,131.05,26.7064]
[1726686975454,7.6283,131.09,131.05,26.7064]
[1726686975647,7.6283,131.09,131.03,20.25098]
[1726686975648,15.61051627,131.13,131.09,7.6282]
[1726686975850,15.61051627,131.13,131.07,19.073]
[1726686975851,7.626,131.13,131.07,19.073]
[1726686976079,7.6266,131.12,131.08,7.6289]
[1726686976246,7.9834947,131.16,131.09,7.6282]
[1726686976566,7.6266,131.12,131.07,26.702]
[1726686976755,7.6266,131.12,131.07,19.073]
[1726686976947,7.6255,131.14,131.08,0.12549]
[1726686977149,7.6261,131.13,131.07,19.073]
[1726686977348,7.6254,131.14,131.09,7.6283]
[1726686977549,7.626,131.13,131.08,7.75439]
[1726686977854,7.6266,131.12,131.07,26.7024]
[1726686978045,19.063,131.15,131.06,6.1649]
[1726686978246,7.6289,131.08,131.04,19.0778]
[1726686978551,0.25098,131.12,131.04,19.0778]
[1726686978749,7.6278,131.1,131.05,7.6301]
[1726686978949,0.37647,131.12,131.04,19.0778]
[1726686979151,7.6288,131.09,131.04,26.7085]
[1726686979464,7.6295,131.07,131.02,29.1343]
[1726686979667,7.629,131.08,131.03,7.6317]
[1726686979975,0.12549,131.12,131.03,19.0787]
[1726686980477,7.6272,131.11,131.05,19.0759]
[1726686980680,0.25098,131.15,131.05,19.0759]
[1726686980681,7.6266,131.12,131.06,0.37647]
[1726686980977,7.6266,131.12,131.05,19.0759]
[1726686980978,7.6277,131.1,131.05,26.7064]
[1726686981280,38.25239,131.15,131.02,40.5828]
[1726686981491,7.6307,131.05,131.02,15.2012]
[1726686981779,19.0703,131.1,130.99,19.0845]
[1726686981780,7.632,131.03,130.99,19.0845]
[1726686981961,7.6324,131.02,130.98,14.4504237]
[1726686982364,7.6313,131.04,131.0,7.6335]
[1726686982563,19.0717,131.09,130.98,6.8158237]
[1726686982760,7.6306,131.06,131.01,7.6328]
[1726686982989,0.12549,131.08,131.0,26.7162]
[1726686983289,19.0744,131.07,130.98,6.8158237]
[1726686983455,0.25098,131.06,130.98,14.4500237]
[1726686983650,7.6318,131.03,130.99,7.6341]
[1726686984373,20.12549,131.1,131.0,7.6335]
[1726686984374,0.25098,131.09,131.0,7.6335]
[1726686984554,7.6325,131.02,130.99,19.0847]
[1726686984761,19.073,131.08,130.99,26.7186]
[1726686984968,19.073,131.08,131.01,7.6324]
[1726686984969,7.6303,131.06,131.01,7.6324]
[1726686985199,19.073,131.08,131.01,7.6324]
[1726686985499,7.6308,131.05,131.0,7.75889]
[1726686986001,7.6278,131.1,131.03,0.25098]
[1726686986212,7.6273,131.11,131.07,7.6294]
[1726686986382,7.6267,131.12,131.08,7.6288]
[1726686986571,7.6273,131.11,131.07,19.073]
[1726686987081,7.6285,131.09,131.04,26.7078]
[1726686987403,7.6278,131.1,131.05,0.37647]
[1726686987605,27.05006331,131.13,131.04,19.077]
[1726686987895,7.6287,131.09,131.04,26.7078]
[1726686988189,7.6281,131.1,131.06,26.7047]
[1726686988393,7.98456331,131.13,131.07,7.6293]
[1726686988394,7.6277,131.11,131.07,7.6293]
[1726686988633,7.6282,131.1,131.06,19.0748]
[1726686988770,7.6273,131.11,131.06,26.7046]
[1726686988984,7.6267,131.12,131.08,7.75419]
[1726686989295,19.0603,131.17,131.08,7.75419]
[1726686989296,19.0603,131.17,131.09,19.0707]
[1726686989499,7.6262,131.13,131.09,19.0707]
[1726686989682,7.6273,131.11,131.07,6.3631]
[1726686989885,7.6278,131.1,131.07,6.3631]
[1726686990076,7.6272,131.11,131.07,6.3631]
[1726686990274,7.98317606,131.16,131.07,6.3631]
[1726686990275,7.98317606,131.16,131.08,19.44817]
[1726686990490,19.0643,131.14,131.07,6.3631]
[1726686990979,7.6282,131.1,131.07,6.3631]
[1726686991172,0.12549,131.11,131.06,15.7187]
[1726686991482,0.12549,131.11,131.02,25.4994]
[1726686991483,7.6305,131.06,131.02,25.4994]
[1726686991784,19.066,131.13,131.04,7.6312]
[1726686991991,0.25098,131.12,131.04,7.6312]
[1726686992287,19.066,131.13,131.05,7.6303]
[1726686992498,19.066,131.13,131.04,19.0773]
[1726686992720,7.6287,131.09,131.04,26.708]
[1726686993024,0.12549,131.12,131.04,26.708]
[1726686993025,15.00491069,131.19,131.05,20.12549]
[1726686993192,15.00491069,131.19,131.08,19.0717]
[1726686993193,7.6259,131.14,131.08,19.0717]
[1726686993392,15.60797606,131.16,131.11,7.6271]
[1726686993628,7.98317606,131.16,131.11,7.6271]
[1726686993915,1.32992762,131.21,131.12,26.6924]
[1726686994111,7.98122875,131.19,131.1,13.9654]
[1726686994421,19.0583,131.18,131.1,6.3379]
[1726686995091,7.6258,131.14,131.1,13.9655]
[1726686995292,7.98122875,131.19,131.1,13.9655]
[1726686995293,7.98122875,131.19,131.12,7.6265]
[1726686995593,15.60382875,131.19,131.14,7.625]
[1726686995803,7.98122875,131.19,131.13,0.12549]
[1726686996016,7.6214,131.21,131.16,7.6241]
[1726686996538,7.622,131.2,131.16,0.12549]
[1726686996826,7.6214,131.21,131.16,0.12549]
[1726686997193,7.6214,131.21,131.16,7.74919]
[1726686997527,7.9793275,131.23,131.16,0.12549]
[1726686997694,7.6218,131.21,131.16,7.74969]
[1726686997896,7.9793275,131.23,131.15,26.6861]
[1726686998096,7.9793275,131.23,131.14,0.12549]
[1726686998097,27.0306275,131.23,131.13,20.0]
[1726686998313,7.6226,131.19,131.14,0.37647]